[Event "*** Titled Tuesday Blitz"]
[Site "Chess.com"]
[Date "2018.06.05"]
[Round "4"]
[White "Tesla37"]
[Black "AndreyOstrovskiy"]
[Result "0-1"]
[WhiteElo "2626"]
[BlackElo "2667"]
[TimeControl "180+2"]
[EndTime "13:59:47 PDT"]
[Termination "AndreyOstrovskiy won by resignation"]

1. e4 {[%clk 0:03:01.9]} 1... e5 {[%clk 0:03:00.6]} 2. Nf3 {[%clk 0:03:02.6]}
2... Nc6 {[%clk 0:03:02.1]} 3. Bb5 {[%clk 0:03:02.9]} 3... a6 {[%clk 0:03:02.7]}
4. Ba4 {[%clk 0:03:03.5]} 4... Nf6 {[%clk 0:03:03.8]} 5. O-O {[%clk 0:03:04.4]}
5... Be7 {[%clk 0:03:05.1]} 6. d3 {[%clk 0:03:05.4]} 6... b5 {[%clk 0:03:05.8]}
7. Bb3 {[%clk 0:03:06.4]} 7... d6 {[%clk 0:03:07.7]} 8. a3 {[%clk 0:03:00.1]}
8... Rb8 {[%clk 0:03:06.7]} 9. Nc3 {[%clk 0:02:58.7]} 9... Na5 {[%clk
0:03:07.2]} 10. Ba2 {[%clk 0:02:59.1]} 10... c5 {[%clk 0:03:08.3]} 11. Ng5
{[%clk 0:02:50.8]} 11... O-O {[%clk 0:03:05.3]} 12. f4 {[%clk 0:02:51.6]} 12...
c4 {[%clk 0:02:54.9]} 13. Nf3 {[%clk 0:02:46.6]} 13... Qc7 {[%clk 0:02:39.6]}
14. h3 {[%clk 0:02:43.9]} 14... h6 {[%clk 0:02:37.7]} 15. Be3 {[%clk 0:02:41.9]}
15... Bb7 {[%clk 0:02:29.3]} 16. Rc1 {[%clk 0:02:38.6]} 16... Rbd8 {[%clk
0:02:22.5]} 17. b4 {[%clk 0:02:35.1]} 17... Nc6 {[%clk 0:02:20.9]} 18. dxc4
{[%clk 0:02:23.9]} 18... bxc4 {[%clk 0:02:21.1]} 19. Nd5 {[%clk 0:02:24.9]}
19... Nxd5 {[%clk 0:02:20]} 20. exd5 {[%clk 0:02:25.7]} 20... Nb8 {[%clk
0:02:07.6]} 21. c3 {[%clk 0:02:26.3]} 21... Nd7 {[%clk 0:02:02.3]} 22. Rc2
{[%clk 0:01:33.5]} 22... Nf6 {[%clk 0:01:59.3]} 23. Rd2 {[%clk 0:01:34.4]} 23...
Ne4 {[%clk 0:01:52.8]} 24. Rc2 {[%clk 0:01:34.9]} 24... Bf6 {[%clk 0:01:36.2]}
25. Bb1 {[%clk 0:01:34.6]} 25... Rfe8 {[%clk 0:01:30.8]} 26. f5 {[%clk
0:01:25.2]} 26... Be7 {[%clk 0:01:18.1]} 27. Nh2 {[%clk 0:01:20]} 27... Nf6
{[%clk 0:01:17.7]} 28. Rd2 {[%clk 0:01:20.2]} 28... Rc8 {[%clk 0:01:14.5]} 29.
Ng4 {[%clk 0:01:21]} 29... Qd8 {[%clk 0:01:13.6]} 30. Qf3 {[%clk 0:01:19.3]}
30... Nxg4 {[%clk 0:01:06.9]} 31. Qxg4 {[%clk 0:01:20.3]} 31... Bg5 {[%clk
0:01:07.3]} 32. Bxg5 {[%clk 0:01:01.8]} 32... Qxg5 {[%clk 0:01:08]} 33. Qe2
{[%clk 0:01:01.9]} 33... e4 {[%clk 0:01:04.7]} 34. Rd4 {[%clk 0:01:01.4]} 34...
Re5 {[%clk 0:01:00.3]} 35. f6 {[%clk 0:01:02]} 35... Bxd5 {[%clk 0:00:59.2]} 36.
fxg7 {[%clk 0:00:57.3]} 36... Qxg7 {[%clk 0:00:57.4]} 37. Rfd1 {[%clk
0:00:56.1]} 37... Be6 {[%clk 0:00:51.6]} 38. Rxd6 {[%clk 0:00:55.1]} 38... Bxh3
{[%clk 0:00:45.6]} 39. Bxe4 {[%clk 0:00:27.7]} 39... Rce8 {[%clk 0:00:40.7]} 40.
Rd8 {[%clk 0:00:23.4]} 40... Bg4 {[%clk 0:00:37.1]} 41. Rxe8+ {[%clk 0:00:08.7]}
41... Rxe8 {[%clk 0:00:37.8]} 42. Bh7+ {[%clk 0:00:04.1]} 42... Kxh7 {[%clk
0:00:38.3]} 43. Qxe8 {[%clk 0:00:04.9]} 43... Bxd1 {[%clk 0:00:39.2]} 44. Qe4+
{[%clk 0:00:06.7]} 44... Qg6 {[%clk 0:00:39.9]} 45. Qxc4 {[%clk 0:00:07.7]}
45... Bf3 {[%clk 0:00:39.4]} 46. Qf1 {[%clk 0:00:08.4]} 46... Bb7 {[%clk
0:00:35.1]} 47. c4 {[%clk 0:00:09.5]} 47... h5 {[%clk 0:00:36.4]} 48. Qf2 {[%clk
0:00:08.5]} 48... Be4 {[%clk 0:00:35.7]} 49. a4 {[%clk 0:00:08.9]} 49... Bf5
{[%clk 0:00:34.4]} 50. b5 {[%clk 0:00:09.5]} 50... axb5 {[%clk 0:00:35.6]} 51.
cxb5 {[%clk 0:00:10.6]} 51... Bd3 {[%clk 0:00:29.7]} 52. b6 {[%clk 0:00:10.4]}
52... Ba6 {[%clk 0:00:29.2]} 53. a5 {[%clk 0:00:10.8]} 53... Bb7 {[%clk
0:00:30]} 54. Kh2 {[%clk 0:00:11.1]} 54... Qd6+ {[%clk 0:00:29.5]} 55. Kg1
{[%clk 0:00:09.5]} 55... Qd5 {[%clk 0:00:28.8]} 56. Kh2 {[%clk 0:00:08.2]} 56...
Kg6 {[%clk 0:00:28.6]} 57. Qg3+ {[%clk 0:00:08.8]} 57... Kf6 {[%clk 0:00:27.8]}
58. Qf4+ {[%clk 0:00:09.3]} 58... Ke6 {[%clk 0:00:27.2]} 59. Qh6+ {[%clk
0:00:10]} 59... f6 {[%clk 0:00:26.9]} 60. Qe3+ {[%clk 0:00:10.7]} 60... Qe5+
{[%clk 0:00:27.5]} 61. Qxe5+ {[%clk 0:00:11.1]} 61... fxe5 {[%clk 0:00:28.9]}
62. Kg3 {[%clk 0:00:11.8]} 62... Kf5 {[%clk 0:00:30.2]} 63. Kh4 {[%clk
0:00:11.2]} 63... Kf4 {[%clk 0:00:30.2]} 64. g3+ {[%clk 0:00:07.9]} 64... Kf3
{[%clk 0:00:31]} 0-1

[Event "*** Titled Tuesday Blitz"]
[Site "Chess.com"]
[Date "2018.06.05"]
[Round "4"]
[White "Buffy7"]
[Black "florianschwabeneder"]
[Result "1-0"]
[WhiteElo "2708"]
[BlackElo "2375"]
[TimeControl "180+2"]
[EndTime "13:59:56 PDT"]
[Termination "Buffy7 won on time"]

1. d4 {[%clk 0:03:01.9]} 1... Nf6 {[%clk 0:02:58.4]} 2. Nf3 {[%clk 0:03:03.1]}
2... c5 {[%clk 0:02:58.3]} 3. e3 {[%clk 0:03:02.7]} 3... e6 {[%clk 0:02:57.3]}
4. b3 {[%clk 0:03:03.4]} 4... cxd4 {[%clk 0:02:56.6]} 5. exd4 {[%clk 0:03:05.3]}
5... g6 {[%clk 0:02:57.6]} 6. Be2 {[%clk 0:03:02.9]} 6... Bg7 {[%clk 0:02:58.7]}
7. Ba3 {[%clk 0:03:03.8]} 7... d6 {[%clk 0:02:58.7]} 8. c4 {[%clk 0:03:04.5]}
8... O-O {[%clk 0:02:59.1]} 9. O-O {[%clk 0:03:05.5]} 9... b6 {[%clk 0:02:57]}
10. Nc3 {[%clk 0:03:04.7]} 10... a6 {[%clk 0:02:57.7]} 11. Bb2 {[%clk
0:02:58.3]} 11... Bb7 {[%clk 0:02:58.2]} 12. a4 {[%clk 0:02:59.5]} 12... Nc6
{[%clk 0:02:53.7]} 13. Re1 {[%clk 0:02:59.9]} 13... d5 {[%clk 0:02:50]} 14. Ne5
{[%clk 0:02:50.3]} 14... Na5 {[%clk 0:02:05.3]} 15. Bf3 {[%clk 0:02:44.4]} 15...
Rc8 {[%clk 0:01:59.1]} 16. Rc1 {[%clk 0:02:43.6]} 16... Rc7 {[%clk 0:01:59.5]}
17. Ba3 {[%clk 0:02:32.6]} 17... Re8 {[%clk 0:01:59.3]} 18. c5 {[%clk 0:02:34]}
18... bxc5 {[%clk 0:01:56.7]} 19. Bxc5 {[%clk 0:02:29.8]} 19... Rc8 {[%clk
0:01:48.2]} 20. b4 {[%clk 0:02:26.9]} 20... Nc6 {[%clk 0:01:47.6]} 21. Nxc6
{[%clk 0:02:28.1]} 21... Bxc6 {[%clk 0:01:47.2]} 22. b5 {[%clk 0:02:23.5]} 22...
axb5 {[%clk 0:01:47.5]} 23. axb5 {[%clk 0:02:25.4]} 23... Bb7 {[%clk 0:01:48.6]}
24. Qb3 {[%clk 0:02:26.4]} 24... Nd7 {[%clk 0:01:44.6]} 25. Na4 {[%clk
0:02:10.5]} 25... Ra8 {[%clk 0:01:39.6]} 26. Qb4 {[%clk 0:01:42.1]} 26... e5
{[%clk 0:01:34.5]} 27. Bd6 {[%clk 0:01:23.9]} 27... exd4 {[%clk 0:01:25.2]} 28.
Rxe8+ {[%clk 0:01:14.3]} 28... Qxe8 {[%clk 0:01:25.6]} 29. b6 {[%clk 0:01:15.8]}
29... d3 {[%clk 0:01:00.5]} 30. Nc5 {[%clk 0:01:11]} 30... Nxc5 {[%clk
0:00:50.8]} 31. Bxc5 {[%clk 0:01:12.9]} 31... Qe5 {[%clk 0:00:38.2]} 32. g3
{[%clk 0:00:51.1]} 32... Ra1 {[%clk 0:00:37.9]} 33. Rxa1 {[%clk 0:00:51.6]}
33... Qxa1+ {[%clk 0:00:39.4]} 34. Kg2 {[%clk 0:00:53.1]} 34... Qc3 {[%clk
0:00:38.2]} 35. Qb5 {[%clk 0:00:51.5]} 35... h5 {[%clk 0:00:15.3]} 36. Qe8+
{[%clk 0:00:27.1]} 36... Kh7 {[%clk 0:00:16.3]} 37. Bf8 {[%clk 0:00:23.1]} 37...
d2 {[%clk 0:00:11.8]} 38. Bd1 {[%clk 0:00:12.9]} 38... d4+ {[%clk 0:00:06.4]}
39. Kh3 {[%clk 0:00:14.2]} 39... Qc4 {[%clk 0:00:03]} 40. Bxg7 {[%clk
0:00:14.3]} 40... Kxg7 {[%clk 0:00:02.9]} 41. Qe5+ {[%clk 0:00:15.1]} 41... Kh7
{[%clk 0:00:02.1]} 42. g4 {[%clk 0:00:09.6]} 42... hxg4+ {[%clk 0:00:02.5]} 43.
Kh4 {[%clk 0:00:10.4]} 43... Qb4 {[%clk 0:00:02.3]} 44. Qf6 {[%clk 0:00:10.7]}
44... Qf8 {[%clk 0:00:03.1]} 45. Kxg4 {[%clk 0:00:11]} 45... Qh6 {[%clk
0:00:04.5]} 46. Kg3 {[%clk 0:00:12.1]} 46... Qg7 {[%clk 0:00:06.1]} 47. Qh4+
{[%clk 0:00:12.9]} 47... Kg8 {[%clk 0:00:06.2]} 48. Qd8+ {[%clk 0:00:13.8]}
48... Kh7 {[%clk 0:00:06.7]} 49. Qe7 {[%clk 0:00:15.4]} 49... Bd5 {[%clk
0:00:05.9]} 50. b7 {[%clk 0:00:16.2]} 50... Bxb7 {[%clk 0:00:06.8]} 51. Qxb7
{[%clk 0:00:18.1]} 51... Qe5+ {[%clk 0:00:07.9]} 52. Kg2 {[%clk 0:00:19.6]}
52... Kg7 {[%clk 0:00:08.1]} 53. Qf3 {[%clk 0:00:19.7]} 53... Qe1 {[%clk
0:00:07.8]} 54. Qe2 {[%clk 0:00:19.7]} 54... Kf6 {[%clk 0:00:08.3]} 55. Qf3+
{[%clk 0:00:21]} 55... Kg7 {[%clk 0:00:09.2]} 56. Bb3 {[%clk 0:00:22.1]} 56...
f5 {[%clk 0:00:08.5]} 57. h4 {[%clk 0:00:21.4]} 57... Qe4 {[%clk 0:00:06.4]} 58.
Kg3 {[%clk 0:00:17.1]} 58... Kf6 {[%clk 0:00:05.3]} 59. Bd1 {[%clk 0:00:15.1]}
59... Ke5 {[%clk 0:00:05.1]} 60. Qa3 {[%clk 0:00:14.2]} 60... Qf4+ {[%clk
0:00:04.5]} 61. Kg2 {[%clk 0:00:15.5]} 61... Qxh4 {[%clk 0:00:04.7]} 62. Qc5+
{[%clk 0:00:15.1]} 62... Kf6 {[%clk 0:00:03.9]} 63. Qc7 {[%clk 0:00:15.3]} 1-0

[Event "*** Titled Tuesday Blitz"]
[Site "Chess.com"]
[Date "2018.06.05"]
[Round "4"]
[White "asms9699"]
[Black "OK97"]
[Result "0-1"]
[WhiteElo "2441"]
[BlackElo "2663"]
[TimeControl "180+2"]
[EndTime "14:00:15 PDT"]
[Termination "OK97 won by resignation"]

1. c4 {[%clk 0:03:01.9]} 1... e5 {[%clk 0:02:59.9]} 2. g3 {[%clk 0:03:03.1]}
2... Nf6 {[%clk 0:02:59.9]} 3. Bg2 {[%clk 0:03:04.3]} 3... d5 {[%clk 0:03:01.5]}
4. cxd5 {[%clk 0:03:06.2]} 4... Nxd5 {[%clk 0:03:03]} 5. Nc3 {[%clk 0:03:07.7]}
5... Nb6 {[%clk 0:03:04.3]} 6. Nf3 {[%clk 0:03:08.9]} 6... Nc6 {[%clk
0:03:05.5]} 7. O-O {[%clk 0:03:10.4]} 7... Be7 {[%clk 0:03:06.9]} 8. a3 {[%clk
0:03:11.9]} 8... O-O {[%clk 0:03:07.8]} 9. b4 {[%clk 0:03:12.9]} 9... Re8 {[%clk
0:03:08.5]} 10. Bb2 {[%clk 0:03:12.7]} 10... Bf8 {[%clk 0:03:09.4]} 11. d3
{[%clk 0:03:13.4]} 11... a5 {[%clk 0:03:08.5]} 12. b5 {[%clk 0:03:13.8]} 12...
Nd4 {[%clk 0:03:10]} 13. Nd2 {[%clk 0:03:15.3]} 13... c6 {[%clk 0:02:57.8]} 14.
e3 {[%clk 0:03:10.7]} 14... Nxb5 {[%clk 0:02:53.2]} 15. Nxb5 {[%clk 0:03:11.3]}
15... cxb5 {[%clk 0:02:55.1]} 16. Qe2 {[%clk 0:03:11]} 16... Na4 {[%clk
0:02:52.3]} 17. Ne4 {[%clk 0:03:01.7]} 17... Nxb2 {[%clk 0:02:46]} 18. Qxb2
{[%clk 0:03:02]} 18... Bd7 {[%clk 0:02:47.5]} 19. Nc3 {[%clk 0:02:50.8]} 19...
b4 {[%clk 0:02:17.7]} 20. axb4 {[%clk 0:02:49.2]} 20... axb4 {[%clk 0:02:19.6]}
21. Nd5 {[%clk 0:02:45]} 21... Rxa1 {[%clk 0:02:12.4]} 22. Rxa1 {[%clk
0:02:44.2]} 22... Re6 {[%clk 0:01:37.8]} 23. Qd2 {[%clk 0:01:46.5]} 23... Ra6
{[%clk 0:01:22.8]} 24. Rb1 {[%clk 0:01:38]} 24... Ra4 {[%clk 0:01:14.8]} 25. Qc2
{[%clk 0:01:12.2]} 25... Qa5 {[%clk 0:01:08.3]} 26. h4 {[%clk 0:00:59.7]} 26...
Bc6 {[%clk 0:01:08.8]} 27. Qc4 {[%clk 0:00:56.3]} 27... Qc5 {[%clk 0:00:59.5]}
28. Qb3 {[%clk 0:00:34.7]} 28... Qa5 {[%clk 0:00:27.6]} 29. Qc4 {[%clk
0:00:35.1]} 29... h6 {[%clk 0:00:21.9]} 30. Be4 {[%clk 0:00:34.8]} 30... Ra1
{[%clk 0:00:15.3]} 31. Rxa1 {[%clk 0:00:32.3]} 31... Qxa1+ {[%clk 0:00:17.2]}
32. Kg2 {[%clk 0:00:32.9]} 32... Qa6 {[%clk 0:00:16.3]} 33. Qb3 {[%clk
0:00:26.6]} 33... Qb5 {[%clk 0:00:12.3]} 34. Kh2 {[%clk 0:00:24.3]} 34... Qc5
{[%clk 0:00:13.3]} 35. h5 {[%clk 0:00:23.4]} 35... Qd6 {[%clk 0:00:14.1]} 36.
Qc4 {[%clk 0:00:19.2]} 36... Bd7 {[%clk 0:00:14.1]} 37. f4 {[%clk 0:00:12.9]}
37... Be6 {[%clk 0:00:14.6]} 38. fxe5 {[%clk 0:00:12.8]} 38... Qxe5 {[%clk
0:00:15.1]} 39. Bf3 {[%clk 0:00:13.1]} 39... Qf5 {[%clk 0:00:14]} 40. Kg2 {[%clk
0:00:13.3]} 40... Qh3+ {[%clk 0:00:14.6]} 41. Kf2 {[%clk 0:00:14.4]} 41... Qh2+
{[%clk 0:00:15.9]} 42. Bg2 {[%clk 0:00:15.2]} 42... Bh3 {[%clk 0:00:15.9]} 43.
Nf4 {[%clk 0:00:16.6]} 43... Bxg2 {[%clk 0:00:16.8]} 44. Nxg2 {[%clk 0:00:18.5]}
44... Qxh5 {[%clk 0:00:17.7]} 45. Nf4 {[%clk 0:00:19.9]} 45... Qe5 {[%clk
0:00:17.8]} 46. d4 {[%clk 0:00:19]} 46... Qe4 {[%clk 0:00:18.1]} 47. Nd5 {[%clk
0:00:18.4]} 47... Qf5+ {[%clk 0:00:17.5]} 48. Ke2 {[%clk 0:00:18.7]} 48... Qg4+
{[%clk 0:00:18.2]} 49. Kf2 {[%clk 0:00:20.2]} 49... Qf5+ {[%clk 0:00:18.9]} 50.
Ke2 {[%clk 0:00:21]} 50... Qe6 {[%clk 0:00:20.5]} 51. Kd3 {[%clk 0:00:21]} 51...
Qg6+ {[%clk 0:00:21.2]} 52. Ke2 {[%clk 0:00:21.3]} 52... Qxg3 {[%clk 0:00:21.7]}
53. Nxb4 {[%clk 0:00:21.7]} 53... Qg2+ {[%clk 0:00:23]} 54. Ke1 {[%clk
0:00:21.2]} 54... Qg1+ {[%clk 0:00:23.6]} 55. Ke2 {[%clk 0:00:22.2]} 55... Qg2+
{[%clk 0:00:24.5]} 56. Ke1 {[%clk 0:00:23.5]} 56... h5 {[%clk 0:00:22.8]} 57.
Nd5 {[%clk 0:00:23.5]} 57... h4 {[%clk 0:00:24.2]} 58. Nf4 {[%clk 0:00:24.7]}
58... Qg3+ {[%clk 0:00:24.5]} 59. Ke2 {[%clk 0:00:25.2]} 59... h3 {[%clk
0:00:24.3]} 60. Nxh3 {[%clk 0:00:13.7]} 60... Qxh3 {[%clk 0:00:24.2]} 61. Qd5
{[%clk 0:00:15.2]} 61... Qh2+ {[%clk 0:00:24.9]} 62. Kd3 {[%clk 0:00:16.2]}
62... Qc7 {[%clk 0:00:26.2]} 63. e4 {[%clk 0:00:17.1]} 63... Qg3+ {[%clk
0:00:26.5]} 64. Kc4 {[%clk 0:00:17.8]} 64... Qc7+ {[%clk 0:00:27.1]} 65. Kd3
{[%clk 0:00:19.4]} 65... b6 {[%clk 0:00:27.7]} 66. e5 {[%clk 0:00:20.7]} 66...
Qc8 {[%clk 0:00:21.1]} 67. Qb5 {[%clk 0:00:18.1]} 67... Qf5+ {[%clk 0:00:20.2]}
68. Ke3 {[%clk 0:00:19.3]} 68... Qe6 {[%clk 0:00:16]} 69. Ke4 {[%clk 0:00:18.8]}
69... g6 {[%clk 0:00:16.9]} 70. d5 {[%clk 0:00:18.2]} 70... Qf5+ {[%clk
0:00:18.2]} 71. Kd4 {[%clk 0:00:19.3]} 71... Bc5+ {[%clk 0:00:19.4]} 72. Kc4
{[%clk 0:00:16.7]} 72... Qf1+ {[%clk 0:00:20.4]} 0-1

[Event "*** Titled Tuesday Blitz"]
[Site "Chess.com"]
[Date "2018.06.05"]
[Round "4"]
[White "Terrordelcaribe94"]
[Black "dmosesov"]
[Result "1-0"]
[WhiteElo "2360"]
[BlackElo "2192"]
[TimeControl "180+2"]
[EndTime "14:00:15 PDT"]
[Termination "Terrordelcaribe94 won by checkmate"]

1. d4 {[%clk 0:03:01.8]} 1... Nf6 {[%clk 0:03:00.5]} 2. Bf4 {[%clk 0:03:02.3]}
2... b6 {[%clk 0:02:58.4]} 3. Nf3 {[%clk 0:02:52.7]} 3... Bb7 {[%clk 0:02:55.6]}
4. e3 {[%clk 0:02:53.9]} 4... g6 {[%clk 0:02:56.1]} 5. Bc4 {[%clk 0:02:49.7]}
5... Bg7 {[%clk 0:02:52.8]} 6. Nbd2 {[%clk 0:02:49]} 6... O-O {[%clk 0:02:52.8]}
7. h4 {[%clk 0:02:50]} 7... h5 {[%clk 0:02:34.6]} 8. Qe2 {[%clk 0:02:43.9]} 8...
c5 {[%clk 0:02:29.2]} 9. c3 {[%clk 0:02:39.9]} 9... Nc6 {[%clk 0:02:18.3]} 10.
Ne5 {[%clk 0:02:39.1]} 10... d5 {[%clk 0:01:42.7]} 11. Bd3 {[%clk 0:02:36.5]}
11... Nd7 {[%clk 0:01:30.8]} 12. Nxc6 {[%clk 0:01:46.7]} 12... Bxc6 {[%clk
0:01:26.5]} 13. g4 {[%clk 0:01:48.1]} 13... Nf6 {[%clk 0:01:21.4]} 14. Be5
{[%clk 0:01:26.4]} 14... Nxg4 {[%clk 0:01:16.1]} 15. Bxg7 {[%clk 0:01:27.3]}
15... Kxg7 {[%clk 0:01:18]} 16. f3 {[%clk 0:01:24.2]} 16... Nf6 {[%clk
0:01:17.8]} 17. O-O-O {[%clk 0:01:25.2]} 17... Qc7 {[%clk 0:01:04.6]} 18. f4
{[%clk 0:01:23.2]} 18... cxd4 {[%clk 0:00:56.1]} 19. exd4 {[%clk 0:01:25.1]}
19... Qxf4 {[%clk 0:00:56.7]} 20. Rdf1 {[%clk 0:01:10]} 20... Qd6 {[%clk
0:00:53.8]} 21. Rhg1 {[%clk 0:01:10.7]} 21... Ng4 {[%clk 0:00:28.4]} 22. Nf3
{[%clk 0:00:56.9]} 22... Qf4+ {[%clk 0:00:15.8]} 23. Kb1 {[%clk 0:00:57.5]}
23... Qe3 {[%clk 0:00:16.8]} 24. Qxe3 {[%clk 0:00:58.8]} 24... Nxe3 {[%clk
0:00:18.7]} 25. Re1 {[%clk 0:01:00.2]} 25... Ng4 {[%clk 0:00:18.3]} 26. Rxe7
{[%clk 0:01:00.6]} 26... Rfe8 {[%clk 0:00:19.6]} 27. Rc7 {[%clk 0:01:00.5]}
27... Rec8 {[%clk 0:00:20.6]} 28. Re7 {[%clk 0:00:45.8]} 28... Re8 {[%clk
0:00:20.3]} 29. Rc7 {[%clk 0:00:47]} 29... Rec8 {[%clk 0:00:20.2]} 30. Rxc8
{[%clk 0:00:34.3]} 30... Rxc8 {[%clk 0:00:21.5]} 31. Ng5 {[%clk 0:00:36.2]}
31... Re8 {[%clk 0:00:20.2]} 32. Rf1 {[%clk 0:00:36.8]} 32... Re7 {[%clk
0:00:21.3]} 33. a3 {[%clk 0:00:32.2]} 33... f6 {[%clk 0:00:17.6]} 34. Nh3 {[%clk
0:00:33]} 34... Re3 {[%clk 0:00:17.2]} 35. Nf4 {[%clk 0:00:32.9]} 35... f5
{[%clk 0:00:15.3]} 36. Bc2 {[%clk 0:00:31.4]} 36... Nf6 {[%clk 0:00:11.5]} 37.
Rg1 {[%clk 0:00:29.6]} 37... Ng4 {[%clk 0:00:12.3]} 38. Bb3 {[%clk 0:00:30.6]}
38... Rf3 {[%clk 0:00:08.6]} 39. Nxd5 {[%clk 0:00:29.1]} 39... Bxd5 {[%clk
0:00:07.5]} 40. Bxd5 {[%clk 0:00:31]} 40... Rh3 {[%clk 0:00:09.1]} 41. Re1
{[%clk 0:00:31.4]} 41... Rxh4 {[%clk 0:00:10.1]} 42. Re7+ {[%clk 0:00:32.4]}
42... Kf6 {[%clk 0:00:11.4]} 43. Rxa7 {[%clk 0:00:32.7]} 43... Rh2 {[%clk
0:00:12.5]} 44. Ba8 {[%clk 0:00:32.9]} 44... h4 {[%clk 0:00:12.3]} 45. Rb7
{[%clk 0:00:25.4]} 45... h3 {[%clk 0:00:12.5]} 46. Rxb6+ {[%clk 0:00:26.9]}
46... Kg5 {[%clk 0:00:14]} 47. d5 {[%clk 0:00:28.2]} 47... Rd2 {[%clk
0:00:12.5]} 48. d6 {[%clk 0:00:29.5]} 48... h2 {[%clk 0:00:12]} 49. c4 {[%clk
0:00:30.9]} 49... Ne3 {[%clk 0:00:09.9]} 50. c5 {[%clk 0:00:30.9]} 50... Ng2
{[%clk 0:00:11]} 51. Bxg2 {[%clk 0:00:30.6]} 51... Rxg2 {[%clk 0:00:12.9]} 52.
d7 {[%clk 0:00:32.4]} 52... h1=Q+ {[%clk 0:00:14.3]} 53. Ka2 {[%clk 0:00:34.2]}
53... Qd1 {[%clk 0:00:14.9]} 54. Rd6 {[%clk 0:00:35.2]} 54... Qc1 {[%clk
0:00:14.9]} 55. d8=Q+ {[%clk 0:00:33.6]} 55... Kg4 {[%clk 0:00:14.5]} 56. Rd4+
{[%clk 0:00:34]} 56... Kg3 {[%clk 0:00:14.6]} 57. Qh4+ {[%clk 0:00:32.8]} 57...
Kf3 {[%clk 0:00:15.3]} 58. Qh3+ {[%clk 0:00:28.3]} 58... Kf2 {[%clk 0:00:16.6]}
59. Qd3 {[%clk 0:00:14.6]} 59... Qxc5 {[%clk 0:00:15.3]} 60. Rf4+ {[%clk
0:00:13.7]} 60... Kg1 {[%clk 0:00:14.3]} 61. Qd1+ {[%clk 0:00:14.8]} 61... Kh2
{[%clk 0:00:14.5]} 62. Rh4+ {[%clk 0:00:16.3]} 62... Kg3 {[%clk 0:00:15.8]} 63.
Qe1+ {[%clk 0:00:17.4]} 63... Rf2 {[%clk 0:00:15.2]} 64. Qh1 {[%clk 0:00:11]}
64... Qe5 {[%clk 0:00:12.6]} 65. Qh3# {[%clk 0:00:11.3]} 1-0